[Event "*** Titled Tuesday Blitz"]
[Site "Chess.com"]
[Date "2021.02.16"]
[Round "3"]
[White "ukchessbomber"]
[Black "kamilianin235"]
[Result "0-1"]
[WhiteElo "2467"]
[BlackElo "2179"]
[TimeControl "180+1"]
[EndTime "10:31:59 PST"]
[Termination "kamilianin235 won by checkmate"]

1. d4 {[%clk 0:03:00.9]} 1... d5 {[%clk 0:02:58.3]} 2. c4 {[%clk 0:03:00.1]}
2... dxc4 {[%clk 0:02:57.1]} 3. e4 {[%clk 0:02:59.8]} 3... c5 {[%clk 0:02:53.3]}
4. d5 {[%clk 0:03:00.1]} 4... e6 {[%clk 0:02:51]} 5. Bxc4 {[%clk 0:03:00.4]}
5... Nf6 {[%clk 0:02:51.1]} 6. Nc3 {[%clk 0:03:00.1]} 6... exd5 {[%clk
0:02:49.7]} 7. exd5 {[%clk 0:03:01]} 7... a6 {[%clk 0:02:49.4]} 8. a4 {[%clk
0:03:00.8]} 8... Bd6 {[%clk 0:02:49]} 9. Nf3 {[%clk 0:02:59]} 9... O-O {[%clk
0:02:47.6]} 10. O-O {[%clk 0:02:59.6]} 10... Bg4 {[%clk 0:02:46.3]} 11. h3
{[%clk 0:02:57]} 11... Bh5 {[%clk 0:02:43.1]} 12. a5 {[%clk 0:02:56.6]} 12...
Nbd7 {[%clk 0:02:38.8]} 13. Bg5 {[%clk 0:02:52.8]} 13... h6 {[%clk 0:02:33.5]}
14. Bh4 {[%clk 0:02:49.9]} 14... Qc7 {[%clk 0:02:32.9]} 15. Qd2 {[%clk
0:02:31.1]} 15... Bxf3 {[%clk 0:02:23]} 16. gxf3 {[%clk 0:02:32]} 16... Bf4
{[%clk 0:02:02.7]} 17. d6 {[%clk 0:01:44.4]} 17... Bxd6 {[%clk 0:01:42.9]} 18.
Bxf6 {[%clk 0:01:11.2]} 18... Nxf6 {[%clk 0:01:35.8]} 19. Kh1 {[%clk 0:01:06.4]}
19... Bf4 {[%clk 0:01:26.1]} 20. Qc2 {[%clk 0:01:04.6]} 20... Qe5 {[%clk
0:01:19.8]} 21. Ne4 {[%clk 0:00:41.3]} 21... Qf5 {[%clk 0:00:57.6]} 22. Nxf6+
{[%clk 0:00:38.2]} 22... Qxf6 {[%clk 0:00:57.3]} 23. Rg1 {[%clk 0:00:33.6]}
23... Qh4 {[%clk 0:00:52.4]} 24. Qf5 {[%clk 0:00:29.3]} 24... Kh8 {[%clk
0:00:46.5]} 25. Bd3 {[%clk 0:00:16.8]} 25... g6 {[%clk 0:00:37.3]} 26. Qg4
{[%clk 0:00:16.7]} 26... Qf6 {[%clk 0:00:30]} 27. Ra4 {[%clk 0:00:14.9]} 27...
Bc7 {[%clk 0:00:26.5]} 28. Rc4 {[%clk 0:00:12.4]} 28... h5 {[%clk 0:00:22.2]}
29. Qg2 {[%clk 0:00:09.5]} 29... Rad8 {[%clk 0:00:17.7]} 30. Bb1 {[%clk
0:00:08.9]} 30... Qd6 {[%clk 0:00:15.4]} 31. f4 {[%clk 0:00:08]} 31... Bxa5
{[%clk 0:00:14.3]} 32. f5 {[%clk 0:00:08.2]} 32... Rg8 {[%clk 0:00:12.7]} 33.
Rh4 {[%clk 0:00:07.3]} 33... Bc7 {[%clk 0:00:11.6]} 34. fxg6 {[%clk 0:00:07]}
34... fxg6 {[%clk 0:00:11.7]} 35. f4 {[%clk 0:00:05.5]} 35... Qf6 {[%clk
0:00:10]} 36. Qg5 {[%clk 0:00:04.6]} 36... Qxg5 {[%clk 0:00:09.5]} 37. Rxg5
{[%clk 0:00:04.6]} 37... Rd1+ {[%clk 0:00:08.5]} 38. Rg1 {[%clk 0:00:05.2]}
38... Rxg1+ {[%clk 0:00:08.5]} 39. Kxg1 {[%clk 0:00:06.1]} 39... Bd8 {[%clk
0:00:08.5]} 40. Rg4 {[%clk 0:00:02.6]} 40... hxg4 {[%clk 0:00:07.5]} 41. hxg4
{[%clk 0:00:03.5]} 41... Kg7 {[%clk 0:00:07.9]} 42. Kg2 {[%clk 0:00:04.4]} 42...
Rf8 {[%clk 0:00:08.1]} 43. Kf3 {[%clk 0:00:05.3]} 43... Bc7 {[%clk 0:00:08.2]}
44. f5 {[%clk 0:00:06.2]} 44... gxf5 {[%clk 0:00:08.2]} 45. gxf5 {[%clk
0:00:06.9]} 45... Kf6 {[%clk 0:00:08.5]} 46. Ke4 {[%clk 0:00:07.8]} 46... Re8+
{[%clk 0:00:08.8]} 47. Kd5 {[%clk 0:00:08.7]} 47... Re5+ {[%clk 0:00:09]} 48.
Kc4 {[%clk 0:00:09.3]} 48... Rxf5 {[%clk 0:00:09.2]} 49. Bxf5 {[%clk 0:00:07.9]}
49... Kxf5 {[%clk 0:00:10.1]} 50. Kd5 {[%clk 0:00:08.8]} 50... Bb6 {[%clk
0:00:09.2]} 51. Kc4 {[%clk 0:00:09.7]} 51... Ke5 {[%clk 0:00:08.6]} 52. Kb3
{[%clk 0:00:09.2]} 52... Kd4 {[%clk 0:00:08]} 53. Kc2 {[%clk 0:00:09.5]} 53...
c4 {[%clk 0:00:07.9]} 54. Kb1 {[%clk 0:00:09]} 54... Kd3 {[%clk 0:00:07.3]} 55.
b3 {[%clk 0:00:09.9]} 55... c3 {[%clk 0:00:06.5]} 56. Kc1 {[%clk 0:00:10.3]}
56... c2 {[%clk 0:00:06.2]} 57. Kb2 {[%clk 0:00:10.8]} 57... Bd4+ {[%clk
0:00:06.2]} 58. Kc1 {[%clk 0:00:05.5]} 58... Be3+ {[%clk 0:00:05.9]} 59. Kb2
{[%clk 0:00:06.4]} 59... c1=Q+ {[%clk 0:00:05.9]} 60. Ka2 {[%clk 0:00:07.3]}
60... Bd4 {[%clk 0:00:05.7]} 61. b4 {[%clk 0:00:08.2]} 61... Qb2# {[%clk
0:00:05.5]} 0-1

[Event "*** Titled Tuesday Blitz"]
[Site "Chess.com"]
[Date "2021.02.16"]
[Round "3"]
[White "VFernandezB"]
[Black "AcostaPablo"]
[Result "1/2-1/2"]
[WhiteElo "2433"]
[BlackElo "2657"]
[TimeControl "180+1"]
[EndTime "10:32:01 PST"]
[Termination "Game drawn by stalemate"]

1. e4 {[%clk 0:02:56.9]} 1... e6 {[%clk 0:02:54.3]} 2. d4 {[%clk 0:02:52.5]}
2... d5 {[%clk 0:02:51.5]} 3. Bd3 {[%clk 0:02:53]} 3... c5 {[%clk 0:02:41]} 4.
dxc5 {[%clk 0:02:47.5]} 4... Bxc5 {[%clk 0:02:19.3]} 5. exd5 {[%clk 0:02:45.7]}
5... Qxd5 {[%clk 0:02:09.9]} 6. Nf3 {[%clk 0:02:42.7]} 6... Nf6 {[%clk
0:01:57.7]} 7. O-O {[%clk 0:02:39.4]} 7... O-O {[%clk 0:01:57]} 8. h3 {[%clk
0:02:30.8]} 8... Nc6 {[%clk 0:01:50.4]} 9. Nc3 {[%clk 0:02:25.4]} 9... Qd8
{[%clk 0:01:50]} 10. Bg5 {[%clk 0:02:23.5]} 10... Be7 {[%clk 0:01:50]} 11. Qe2
{[%clk 0:02:20.9]} 11... a6 {[%clk 0:01:49.2]} 12. Rad1 {[%clk 0:02:20.5]} 12...
Qa5 {[%clk 0:01:48.5]} 13. Ne4 {[%clk 0:02:00.9]} 13... Nxe4 {[%clk 0:01:43.1]}
14. Qxe4 {[%clk 0:02:01.8]} 14... f5 {[%clk 0:01:41.9]} 15. Qh4 {[%clk
0:01:57.8]} 15... Bxg5 {[%clk 0:01:41.5]} 16. Nxg5 {[%clk 0:01:58.7]} 16... h6
{[%clk 0:01:41.8]} 17. Nf3 {[%clk 0:01:53.8]} 17... Qd8 {[%clk 0:01:35.4]} 18.
Qxd8 {[%clk 0:01:34.8]} 18... Rxd8 {[%clk 0:01:34.3]} 19. Bc4 {[%clk 0:01:35.3]}
19... Rxd1 {[%clk 0:01:29.1]} 20. Rxd1 {[%clk 0:01:36.2]} 20... Kf7 {[%clk
0:01:29.3]} 21. Nd4 {[%clk 0:01:32.3]} 21... Nxd4 {[%clk 0:01:27.8]} 22. Rxd4
{[%clk 0:01:33.2]} 22... Ke7 {[%clk 0:01:27.5]} 23. f4 {[%clk 0:01:30.4]} 23...
b5 {[%clk 0:01:26.7]} 24. Bb3 {[%clk 0:01:25.3]} 24... Bd7 {[%clk 0:01:27]} 25.
Kf2 {[%clk 0:01:24.1]} 25... g5 {[%clk 0:01:25]} 26. g4 {[%clk 0:01:09.2]} 26...
gxf4 {[%clk 0:01:20.1]} 27. gxf5 {[%clk 0:01:02.4]} 27... exf5 {[%clk
0:01:17.1]} 28. Rxf4 {[%clk 0:00:59.9]} 28... Rc8 {[%clk 0:01:14.8]} 29. c3
{[%clk 0:00:41.1]} 29... a5 {[%clk 0:01:13.4]} 30. a4 {[%clk 0:00:39.6]} 30...
Rb8 {[%clk 0:01:09.4]} 31. Kg3 {[%clk 0:00:25.3]} 31... Be6 {[%clk 0:00:55.7]}
32. Bxe6 {[%clk 0:00:19.2]} 32... Kxe6 {[%clk 0:00:56.6]} 33. Rh4 {[%clk
0:00:16.6]} 33... Ke5 {[%clk 0:00:48.7]} 34. b3 {[%clk 0:00:11.7]} 34... bxa4
{[%clk 0:00:46.2]} 35. Rxa4 {[%clk 0:00:10.5]} 35... Rxb3 {[%clk 0:00:44.9]} 36.
Rxa5+ {[%clk 0:00:10.5]} 36... Ke4 {[%clk 0:00:41.8]} 37. Rc5 {[%clk 0:00:09.7]}
37... f4+ {[%clk 0:00:40.8]} 38. Kf2 {[%clk 0:00:07]} 38... Rb2+ {[%clk
0:00:40.5]} 39. Kf1 {[%clk 0:00:07.2]} 39... f3 {[%clk 0:00:40.7]} 40. Rc8
{[%clk 0:00:06.8]} 40... Kf4 {[%clk 0:00:40]} 41. c4 {[%clk 0:00:06.7]} 41...
Kg3 {[%clk 0:00:39.6]} 42. Rg8+ {[%clk 0:00:06.8]} 42... Kxh3 {[%clk 0:00:39.8]}
43. c5 {[%clk 0:00:07.7]} 43... Rc2 {[%clk 0:00:40]} 44. Rf8 {[%clk 0:00:06.5]}
44... Kg3 {[%clk 0:00:38.9]} 45. Rg8+ {[%clk 0:00:06.9]} 45... Kf4 {[%clk
0:00:39.3]} 46. Rf8+ {[%clk 0:00:06.8]} 46... Ke4 {[%clk 0:00:39]} 47. Re8+
{[%clk 0:00:07.1]} 47... Kd4 {[%clk 0:00:38]} 48. Rh8 {[%clk 0:00:07.2]} 48...
Rxc5 {[%clk 0:00:29.9]} 49. Rxh6 {[%clk 0:00:07.1]} 49... Ke3 {[%clk 0:00:19.3]}
50. Re6+ {[%clk 0:00:07]} 50... Kf4 {[%clk 0:00:19.5]} 51. Re8 {[%clk
0:00:06.5]} 51... Rg5 {[%clk 0:00:18.1]} 52. Rf8+ {[%clk 0:00:06]} 52... Kg3
{[%clk 0:00:18.2]} 53. Rf7 {[%clk 0:00:03.1]} 53... Rg6 {[%clk 0:00:17.8]} 54.
Rf8 {[%clk 0:00:03.4]} 54... Rg4 {[%clk 0:00:17.7]} 55. Rf7 {[%clk 0:00:03.8]}
55... Rh4 {[%clk 0:00:17.8]} 56. Rg7+ {[%clk 0:00:04.1]} 56... Kf4 {[%clk
0:00:17.8]} 57. Rf7+ {[%clk 0:00:04.5]} 57... Ke3 {[%clk 0:00:18.4]} 58. Re7+
{[%clk 0:00:05.1]} 58... Re4 {[%clk 0:00:19]} 59. Rxe4+ {[%clk 0:00:04.8]} 59...
Kxe4 {[%clk 0:00:18.3]} 60. Kf2 {[%clk 0:00:05.7]} 60... Kf4 {[%clk 0:00:18.4]}
61. Kf1 {[%clk 0:00:06]} 61... Kg3 {[%clk 0:00:18.3]} 62. Kg1 {[%clk 0:00:06.4]}
62... f2+ {[%clk 0:00:19.2]} 63. Kf1 {[%clk 0:00:07]} 63... Kf3 {[%clk
0:00:20.1]} 1/2-1/2

[Event "*** Titled Tuesday Blitz"]
[Site "Chess.com"]
[Date "2021.02.16"]
[Round "3"]
[White "GameOverBro"]
[Black "GianmarcoVaR"]
[Result "0-1"]
[WhiteElo "2421"]
[BlackElo "2651"]
[TimeControl "180+1"]
[EndTime "10:32:03 PST"]
[Termination "GianmarcoVaR won by resignation"]

1. e4 {[%clk 0:03:00.9]} 1... c6 {[%clk 0:02:04.4]} 2. Nc3 {[%clk 0:02:59.6]}
2... d5 {[%clk 0:02:03.1]} 3. Nf3 {[%clk 0:02:59.6]} 3... dxe4 {[%clk 0:02:03]}
4. Nxe4 {[%clk 0:03:00.5]} 4... Nf6 {[%clk 0:02:02.5]} 5. Qe2 {[%clk 0:03:00.6]}
5... Nxe4 {[%clk 0:02:02.2]} 6. Qxe4 {[%clk 0:03:00.5]} 6... Qa5 {[%clk
0:02:02.8]} 7. Bd3 {[%clk 0:02:47.2]} 7... Nd7 {[%clk 0:02:00.9]} 8. Qe2 {[%clk
0:02:44.7]} 8... Nc5 {[%clk 0:01:52.3]} 9. Bc4 {[%clk 0:02:41.8]} 9... Be6
{[%clk 0:01:29]} 10. O-O {[%clk 0:02:34.4]} 10... Bxc4 {[%clk 0:01:16.2]} 11.
Qxc4 {[%clk 0:02:35.3]} 11... e6 {[%clk 0:01:16.8]} 12. b4 {[%clk 0:02:33.6]}
12... Qa6 {[%clk 0:01:17.2]} 13. Qg4 {[%clk 0:02:21.7]} 13... Nd7 {[%clk
0:01:16.5]} 14. Bb2 {[%clk 0:02:19.6]} 14... Nf6 {[%clk 0:01:16.5]} 15. Bxf6
{[%clk 0:02:12.8]} 15... gxf6 {[%clk 0:01:15.1]} 16. a4 {[%clk 0:02:13.1]} 16...
f5 {[%clk 0:01:12.7]} 17. Qd4 {[%clk 0:02:08.2]} 17... Rg8 {[%clk 0:01:12.9]}
18. b5 {[%clk 0:02:07.9]} 18... Qb6 {[%clk 0:01:12.1]} 19. Qh4 {[%clk
0:02:01.7]} 19... Bg7 {[%clk 0:00:50]} 20. Rab1 {[%clk 0:01:44.9]} 20... c5
{[%clk 0:00:49.8]} 21. Qxh7 {[%clk 0:01:42.8]} 21... Ke7 {[%clk 0:00:47.6]} 22.
Qh4+ {[%clk 0:01:31.3]} 22... Bf6 {[%clk 0:00:46.9]} 23. Qc4 {[%clk 0:01:31.8]}
23... Rg4 {[%clk 0:00:46.1]} 24. Qe2 {[%clk 0:01:16.9]} 24... Rxa4 {[%clk
0:00:30.8]} 25. c4 {[%clk 0:01:15]} 25... Ra2 {[%clk 0:00:23.9]} 26. Rfd1 {[%clk
0:01:07.1]} 26... Rh8 {[%clk 0:00:23.5]} 27. Qe3 {[%clk 0:01:01.4]} 27... Qd6
{[%clk 0:00:18.7]} 28. g3 {[%clk 0:00:59.3]} 28... Rb2 {[%clk 0:00:16.9]} 29.
Rxb2 {[%clk 0:00:55.5]} 29... Bxb2 {[%clk 0:00:16.9]} 30. Nh4 {[%clk 0:00:55.2]}
30... Kf8 {[%clk 0:00:15.1]} 31. Qf3 {[%clk 0:00:49.6]} 31... Bf6 {[%clk
0:00:07.7]} 32. Ng2 {[%clk 0:00:48.2]} 32... Qd7 {[%clk 0:00:07.9]} 33. Nf4
{[%clk 0:00:44.9]} 33... Bd4 {[%clk 0:00:07.1]} 34. Kg2 {[%clk 0:00:38.8]} 34...
Kg7 {[%clk 0:00:06.6]} 35. h4 {[%clk 0:00:35]} 35... a6 {[%clk 0:00:05.9]} 36.
bxa6 {[%clk 0:00:31.3]} 36... bxa6 {[%clk 0:00:06.8]} 37. Nh5+ {[%clk
0:00:20.3]} 37... Kh6 {[%clk 0:00:06.1]} 38. Nf4 {[%clk 0:00:20.3]} 38... Qd8
{[%clk 0:00:05.8]} 39. Rb1 {[%clk 0:00:18.1]} 39... Kg7 {[%clk 0:00:04]} 40. Rb7
{[%clk 0:00:17.7]} 40... Qe8 {[%clk 0:00:02.1]} 41. Ra7 {[%clk 0:00:16]} 41...
Kh6 {[%clk 0:00:01.5]} 42. Rxa6 {[%clk 0:00:15.5]} 42... Qb8 {[%clk 0:00:01.4]}
43. Qh5+ {[%clk 0:00:14.9]} 43... Kg7 {[%clk 0:00:01.5]} 44. Qg5+ {[%clk
0:00:15.2]} 44... Kh7 {[%clk 0:00:01.3]} 45. Rc6 {[%clk 0:00:08.2]} 45... Qb7
{[%clk 0:00:01.5]} 46. Nd5 {[%clk 0:00:06.3]} 46... Qxc6 {[%clk 0:00:01.4]} 47.
Qh5+ {[%clk 0:00:04.2]} 47... Kg7 {[%clk 0:00:01.8]} 48. Qg5+ {[%clk 0:00:04.6]}
48... Kf8 {[%clk 0:00:02.3]} 49. Qd8+ {[%clk 0:00:04.1]} 49... Qe8 {[%clk
0:00:01.9]} 50. Qd6+ {[%clk 0:00:04.3]} 50... Kg7 {[%clk 0:00:01.6]} 51. Nf4
{[%clk 0:00:02.8]} 51... Qa8+ {[%clk 0:00:02.1]} 52. Kh3 {[%clk 0:00:03.2]}
52... Qd8 {[%clk 0:00:02.6]} 53. Qc6 {[%clk 0:00:02.4]} 53... Qf6 {[%clk
0:00:02.8]} 54. Qf3 {[%clk 0:00:02.4]} 54... Be5 {[%clk 0:00:02.6]} 55. Nh5+
{[%clk 0:00:02.5]} 55... Rxh5 {[%clk 0:00:03.2]} 56. Qxh5 {[%clk 0:00:03.4]}
56... Qg6 {[%clk 0:00:03.7]} 57. Qf3 {[%clk 0:00:03.5]} 57... Bd4 {[%clk
0:00:04.1]} 58. Kh2 {[%clk 0:00:03.4]} 58... Qh6 {[%clk 0:00:04.4]} 59. Qb7
{[%clk 0:00:04.1]} 59... Qxd2 {[%clk 0:00:04.5]} 60. h5 {[%clk 0:00:04.5]} 60...
Qxf2+ {[%clk 0:00:04.9]} 61. Kh3 {[%clk 0:00:05.4]} 61... Qf1+ {[%clk
0:00:04.4]} 62. Kh2 {[%clk 0:00:05.7]} 62... Bg1+ {[%clk 0:00:03.9]} 63. Kh1
{[%clk 0:00:06.1]} 63... Bf2+ {[%clk 0:00:04.4]} 64. Kh2 {[%clk 0:00:06.5]}
64... Qg1+ {[%clk 0:00:05]} 0-1

[Event "*** Titled Tuesday Blitz"]
[Site "Chess.com"]
[Date "2021.02.16"]
[Round "3"]
[White "Zmeeed63"]
[Black "ErikRonka"]
[Result "1-0"]
[WhiteElo "2478"]
[BlackElo "2488"]
[TimeControl "180+1"]
[EndTime "10:32:03 PST"]
[Termination "Zmeeed63 won by resignation"]

1. d4 {[%clk 0:03:00.9]} 1... d5 {[%clk 0:02:59.7]} 2. c4 {[%clk 0:03:01.4]}
2... e6 {[%clk 0:03:00]} 3. Nc3 {[%clk 0:03:01.9]} 3... a6 {[%clk 0:03:00.5]} 4.
e3 {[%clk 0:03:00.8]} 4... Nf6 {[%clk 0:03:00.2]} 5. Nf3 {[%clk 0:03:00.3]} 5...
c6 {[%clk 0:02:59.7]} 6. b3 {[%clk 0:02:57.1]} 6... c5 {[%clk 0:02:55.1]} 7.
cxd5 {[%clk 0:02:52.9]} 7... exd5 {[%clk 0:02:53.4]} 8. dxc5 {[%clk 0:02:52.4]}
8... Bxc5 {[%clk 0:02:54.3]} 9. Be2 {[%clk 0:02:52.9]} 9... Nc6 {[%clk
0:02:53.9]} 10. O-O {[%clk 0:02:52.2]} 10... O-O {[%clk 0:02:52.6]} 11. Bb2
{[%clk 0:02:51.8]} 11... Ba7 {[%clk 0:02:47.1]} 12. Rc1 {[%clk 0:02:50.6]} 12...
d4 {[%clk 0:02:40.4]} 13. exd4 {[%clk 0:02:49.8]} 13... Nxd4 {[%clk 0:02:41.3]}
14. Nxd4 {[%clk 0:02:50.3]} 14... Bxd4 {[%clk 0:02:31.6]} 15. Bf3 {[%clk
0:02:50]} 15... Rb8 {[%clk 0:02:16.7]} 16. Qc2 {[%clk 0:02:48.8]} 16... Qa5
{[%clk 0:02:01.1]} 17. Rfd1 {[%clk 0:02:36.3]} 17... Bf5 {[%clk 0:01:55]} 18.
Qe2 {[%clk 0:02:10.2]} 18... Rfe8 {[%clk 0:01:46.2]} 19. Qc4 {[%clk 0:02:10.3]}
19... Ba7 {[%clk 0:01:39.9]} 20. Nd5 {[%clk 0:02:03.2]} 20... Ne4 {[%clk
0:01:00.8]} 21. b4 {[%clk 0:01:39.6]} 21... Bxf2+ {[%clk 0:00:42.4]} 22. Kf1
{[%clk 0:01:12.7]} 22... Qa4 {[%clk 0:00:42.8]} 23. Bxe4 {[%clk 0:01:01.6]}
23... Rxe4 {[%clk 0:00:42]} 24. Qc7 {[%clk 0:01:02.3]} 24... Rbe8 {[%clk
0:00:38.9]} 25. Kxf2 {[%clk 0:00:54.5]} 25... Re2+ {[%clk 0:00:38.2]} 26. Kg1
{[%clk 0:00:54.6]} 26... Rxb2 {[%clk 0:00:37]} 27. Ne7+ {[%clk 0:00:55.2]} 27...
Kh8 {[%clk 0:00:33.9]} 28. Nxf5 {[%clk 0:00:52]} 28... Qxa2 {[%clk 0:00:21.2]}
29. Qg3 {[%clk 0:00:42.5]} 29... Rg8 {[%clk 0:00:09.6]} 30. Rc8 {[%clk
0:00:39.8]} 30... Rxg2+ {[%clk 0:00:09.3]} 31. Qxg2 {[%clk 0:00:40.2]} 31...
Qxg2+ {[%clk 0:00:09.8]} 32. Kxg2 {[%clk 0:00:41.1]} 32... Rxc8 {[%clk 0:00:10]}
33. Nd6 {[%clk 0:00:39.7]} 33... Rb8 {[%clk 0:00:05.7]} 34. Nxf7+ {[%clk
0:00:38.5]} 34... Kg8 {[%clk 0:00:05.9]} 35. Rd8+ {[%clk 0:00:36.4]} 35... Rxd8
{[%clk 0:00:05.6]} 36. Nxd8 {[%clk 0:00:37.3]} 36... b6 {[%clk 0:00:05.9]} 37.
Nc6 {[%clk 0:00:35.8]} 37... a5 {[%clk 0:00:03.7]} 38. b5 {[%clk 0:00:31.7]}
38... Kf7 {[%clk 0:00:04.1]} 39. Kf3 {[%clk 0:00:32.4]} 39... Ke6 {[%clk
0:00:04.4]} 40. Ke4 {[%clk 0:00:33]} 40... Kd6 {[%clk 0:00:04.4]} 41. Kd4 {[%clk
0:00:30.7]} 41... g6 {[%clk 0:00:04.7]} 42. Ne5 {[%clk 0:00:26.7]} 42... g5
{[%clk 0:00:02.7]} 43. Nc4+ {[%clk 0:00:26.5]} 43... Kc7 {[%clk 0:00:02.4]} 44.
Ke5 {[%clk 0:00:25.7]} 44... h5 {[%clk 0:00:02.6]} 45. Kf5 {[%clk 0:00:24.1]}
45... g4 {[%clk 0:00:01.3]} 46. Kg5 {[%clk 0:00:24.5]} 46... a4 {[%clk
0:00:01.6]} 47. Kxh5 {[%clk 0:00:24.2]} 47... Kd7 {[%clk 0:00:02.5]} 48. Kxg4
{[%clk 0:00:24.2]} 48... Ke6 {[%clk 0:00:03.4]} 49. h4 {[%clk 0:00:21.7]} 49...
Kd5 {[%clk 0:00:04.3]} 50. h5 {[%clk 0:00:19.6]} 50... Kxc4 {[%clk 0:00:04.5]}
51. h6 {[%clk 0:00:20.3]} 51... Kxb5 {[%clk 0:00:04.1]} 52. h7 {[%clk
0:00:20.9]} 52... Kb4 {[%clk 0:00:04.8]} 53. h8=Q {[%clk 0:00:21.4]} 53... Kb3
{[%clk 0:00:04.7]} 54. Qa1 {[%clk 0:00:21.7]} 54... b5 {[%clk 0:00:04.7]} 55.
Kf3 {[%clk 0:00:22.4]} 55... b4 {[%clk 0:00:05.1]} 56. Ke3 {[%clk 0:00:21.6]}
56... a3 {[%clk 0:00:05.9]} 57. Kd3 {[%clk 0:00:21.3]} 57... a2 {[%clk
0:00:05.9]} 58. Qc1 {[%clk 0:00:14.4]} 58... Ka4 {[%clk 0:00:02]} 59. Qb2 {[%clk
0:00:14.7]} 59... b3 {[%clk 0:00:02.1]} 60. Kc3 {[%clk 0:00:13.9]} 60... Ka5
{[%clk 0:00:02.5]} 61. Kxb3 {[%clk 0:00:12.2]} 61... a1=Q {[%clk 0:00:03.4]} 62.
Qxa1+ {[%clk 0:00:12.6]} 1-0

[Event "*** Titled Tuesday Blitz"]
[Site "Chess.com"]
[Date "2021.02.16"]
[Round "3"]
[White "esapunov"]
[Black "jefferyx"]
[Result "0-1"]
[WhiteElo "2675"]
[BlackElo "2983"]
[TimeControl "180+1"]
[EndTime "10:32:06 PST"]
[Termination "jefferyx won on time"]

1. c4 {[%clk 0:03:00.9]} 1... g6 {[%clk 0:02:59.6]} 2. g3 {[%clk 0:02:59.3]}
2... Bg7 {[%clk 0:02:58.5]} 3. Bg2 {[%clk 0:03:00]} 3... d6 {[%clk 0:02:58.8]}
4. d4 {[%clk 0:03:00.2]} 4... Nc6 {[%clk 0:02:59.3]} 5. Nf3 {[%clk 0:02:58.8]}
5... Bd7 {[%clk 0:02:59.3]} 6. Nc3 {[%clk 0:02:52.4]} 6... Qc8 {[%clk
0:02:59.2]} 7. O-O {[%clk 0:02:52.7]} 7... Bh3 {[%clk 0:02:58.7]} 8. Qa4 {[%clk
0:02:28.4]} 8... Bd7 {[%clk 0:02:40]} 9. Qd1 {[%clk 0:02:26.8]} 9... Bh3 {[%clk
0:02:27.4]} 10. Qa4 {[%clk 0:02:26]} 10... Bxg2 {[%clk 0:02:27]} 11. Kxg2 {[%clk
0:02:25.4]} 11... Qd7 {[%clk 0:02:27.9]} 12. Rd1 {[%clk 0:02:21.8]} 12... Nf6
{[%clk 0:02:14]} 13. Bf4 {[%clk 0:02:15.3]} 13... O-O {[%clk 0:02:12]} 14. Rac1
{[%clk 0:02:09.6]} 14... a6 {[%clk 0:02:08.9]} 15. h3 {[%clk 0:02:01]} 15...
Rfb8 {[%clk 0:02:06.6]} 16. d5 {[%clk 0:01:47.7]} 16... Na7 {[%clk 0:02:03.3]}
17. c5 {[%clk 0:01:43.3]} 17... dxc5 {[%clk 0:01:58.6]} 18. Qxd7 {[%clk
0:01:42]} 18... Nxd7 {[%clk 0:01:59.4]} 19. Bxc7 {[%clk 0:01:42.5]} 19... Rc8
{[%clk 0:01:59.8]} 20. Bf4 {[%clk 0:01:31.3]} 20... Nb5 {[%clk 0:01:59.8]} 21.
e4 {[%clk 0:01:30.8]} 21... Nd6 {[%clk 0:01:31.9]} 22. Nd2 {[%clk 0:01:00.5]}
22... b5 {[%clk 0:01:29.4]} 23. b3 {[%clk 0:00:59]} 23... Ne5 {[%clk 0:01:22.1]}
24. Bxe5 {[%clk 0:00:58.2]} 24... Bxe5 {[%clk 0:01:22.8]} 25. f4 {[%clk
0:00:57.4]} 25... Bd4 {[%clk 0:01:22.3]} 26. g4 {[%clk 0:00:49.4]} 26... c4
{[%clk 0:01:07.1]} 27. e5 {[%clk 0:00:45.3]} 27... cxb3 {[%clk 0:01:01.4]} 28.
Ne2 {[%clk 0:00:43.2]} 28... Rxc1 {[%clk 0:00:57.9]} 29. Rxc1 {[%clk 0:00:39]}
29... Bb2 {[%clk 0:00:56.9]} 30. Rd1 {[%clk 0:00:33.3]} 30... bxa2 {[%clk
0:00:55.4]} 31. exd6 {[%clk 0:00:33.7]} 31... exd6 {[%clk 0:00:49.3]} 32. Nb3
{[%clk 0:00:33.7]} 32... Rc8 {[%clk 0:00:39.1]} 33. Rd2 {[%clk 0:00:25.8]} 33...
a1=Q {[%clk 0:00:21.4]} 34. Nxa1 {[%clk 0:00:25.7]} 34... Bxa1 {[%clk
0:00:22.3]} 35. Ra2 {[%clk 0:00:26.1]} 35... Bg7 {[%clk 0:00:09.3]} 36. Rxa6
{[%clk 0:00:25.7]} 36... Rb8 {[%clk 0:00:07.6]} 37. Nc1 {[%clk 0:00:20.2]} 37...
b4 {[%clk 0:00:06.3]} 38. Nb3 {[%clk 0:00:20.3]} 38... Bf8 {[%clk 0:00:05.6]}
39. Kf2 {[%clk 0:00:17.8]} 39... Rb5 {[%clk 0:00:04.6]} 40. Ra8 {[%clk
0:00:15.1]} 40... Rxd5 {[%clk 0:00:03.9]} 41. Rb8 {[%clk 0:00:15.3]} 41... Rd3
{[%clk 0:00:04]} 42. Rxb4 {[%clk 0:00:15.1]} 42... Rxh3 {[%clk 0:00:03.7]} 43.
Rb7 {[%clk 0:00:14.3]} 43... Rc3 {[%clk 0:00:03]} 44. Nd2 {[%clk 0:00:13.1]}
44... d5 {[%clk 0:00:03.1]} 45. Nf3 {[%clk 0:00:12.7]} 45... Bc5+ {[%clk
0:00:03.1]} 46. Kg2 {[%clk 0:00:12.9]} 46... d4 {[%clk 0:00:04]} 47. Rd7 {[%clk
0:00:12.2]} 47... d3 {[%clk 0:00:04.1]} 48. Ne5 {[%clk 0:00:12]} 48... Rc2+
{[%clk 0:00:03.9]} 49. Kf3 {[%clk 0:00:11.8]} 49... d2 {[%clk 0:00:04.8]} 50. g5
{[%clk 0:00:10.7]} 50... Bb4 {[%clk 0:00:04.4]} 51. Ng4 {[%clk 0:00:10.4]} 51...
Kf8 {[%clk 0:00:03.7]} 52. Nf2 {[%clk 0:00:07.9]} 52... Rc1 {[%clk 0:00:03.4]}
53. Rd3 {[%clk 0:00:07.9]} 53... Re1 {[%clk 0:00:02]} 54. Rd5 {[%clk 0:00:06.3]}
54... Ke7 {[%clk 0:00:01.9]} 55. Rd3 {[%clk 0:00:06.3]} 55... Bc5 {[%clk
0:00:02.2]} 56. Rxd2 {[%clk 0:00:04.7]} 56... Re3+ {[%clk 0:00:02.8]} 57. Kg4
{[%clk 0:00:04.6]} 57... Re6 {[%clk 0:00:03.7]} 0-1